[Event "*** Titled Tuesday Blitz"]
[Site "Chess.com"]
[Date "2020.11.03"]
[Round "9"]
[White "Ajedrez_con_German"]
[Black "MokshanovAlexey"]
[Result "1/2-1/2"]
[WhiteElo "2475"]
[BlackElo "2595"]
[TimeControl "180+1"]
[EndTime "11:46:30 PST"]
[Termination "Game drawn by repetition"]

1. d4 {[%clk 0:03:00.9]} 1... d5 {[%clk 0:02:59.8]} 2. c4 {[%clk 0:02:45.1]}
2... e6 {[%clk 0:02:59.6]} 3. Nc3 {[%clk 0:02:44.5]} 3... Nf6 {[%clk 0:02:58.5]}
4. cxd5 {[%clk 0:02:44.6]} 4... exd5 {[%clk 0:02:58.1]} 5. Bg5 {[%clk
0:02:44.8]} 5... c6 {[%clk 0:02:58.5]} 6. e3 {[%clk 0:02:44.6]} 6... Be7 {[%clk
0:02:55]} 7. Bd3 {[%clk 0:02:44.4]} 7... Nbd7 {[%clk 0:02:55.2]} 8. Nf3 {[%clk
0:02:44.5]} 8... O-O {[%clk 0:02:55.5]} 9. h3 {[%clk 0:02:40.6]} 9... Re8 {[%clk
0:02:55.7]} 10. Qc2 {[%clk 0:02:39.8]} 10... Nf8 {[%clk 0:02:55.6]} 11. Bf4
{[%clk 0:02:39]} 11... Bd6 {[%clk 0:02:54.3]} 12. Bxd6 {[%clk 0:02:37.5]} 12...
Qxd6 {[%clk 0:02:55.2]} 13. O-O {[%clk 0:02:37.5]} 13... Qe7 {[%clk 0:02:46.9]}
14. Rab1 {[%clk 0:02:31.7]} 14... Ne4 {[%clk 0:02:46.6]} 15. b4 {[%clk
0:02:23.3]} 15... a6 {[%clk 0:02:46.6]} 16. a4 {[%clk 0:02:23.1]} 16... Bf5
{[%clk 0:02:46.6]} 17. b5 {[%clk 0:02:16.6]} 17... axb5 {[%clk 0:02:46.8]} 18.
axb5 {[%clk 0:02:16.8]} 18... Nxc3 {[%clk 0:02:47]} 19. Qxc3 {[%clk 0:02:15.3]}
19... Ra3 {[%clk 0:02:38.2]} 20. Rb3 {[%clk 0:02:15.2]} 20... Rxb3 {[%clk
0:02:37.8]} 21. Qxb3 {[%clk 0:02:15.2]} 21... Bxd3 {[%clk 0:02:37.7]} 22. Qxd3
{[%clk 0:02:15.3]} 22... c5 {[%clk 0:02:23.3]} 23. dxc5 {[%clk 0:02:15]} 23...
Qxc5 {[%clk 0:02:24.2]} 24. Rd1 {[%clk 0:02:07.8]} 24... Rd8 {[%clk 0:02:24]}
25. Nd4 {[%clk 0:02:03]} 25... Ne6 {[%clk 0:02:21.7]} 26. Qe2 {[%clk 0:01:36.3]}
26... Re8 {[%clk 0:02:02.6]} 27. Qg4 {[%clk 0:01:27.8]} 27... Nxd4 {[%clk
0:01:55.3]} 28. Qxd4 {[%clk 0:01:26.1]} 28... Qxb5 {[%clk 0:01:55.4]} 29. Qxd5
{[%clk 0:01:24.9]} 29... Qxd5 {[%clk 0:01:55]} 30. Rxd5 {[%clk 0:01:25.8]} 30...
g6 {[%clk 0:01:48.7]} 31. Kf1 {[%clk 0:01:18.6]} 31... Kf8 {[%clk 0:01:40.2]}
32. Rd7 {[%clk 0:01:14.4]} 32... Re7 {[%clk 0:01:40.1]} 33. Rd8+ {[%clk
0:01:13.9]} 33... Re8 {[%clk 0:01:40.7]} 34. Rd7 {[%clk 0:01:09.8]} 34... Re7
{[%clk 0:01:40.9]} 35. Rd8+ {[%clk 0:01:09.8]} 35... Re8 {[%clk 0:01:41.4]} 36.
Rd7 {[%clk 0:01:10.1]} 1/2-1/2

[Event "*** Titled Tuesday Blitz"]
[Site "Chess.com"]
[Date "2020.11.03"]
[Round "9"]
[White "TrickyFortem"]
[Black "SergeyShtyka"]
[Result "0-1"]
[WhiteElo "2521"]
[BlackElo "2379"]
[TimeControl "180+1"]
[EndTime "11:46:44 PST"]
[Termination "SergeyShtyka won by resignation"]

1. d4 {[%clk 0:03:00.9]} 1... c5 {[%clk 0:02:57.4]} 2. d5 {[%clk 0:02:58.4]}
2... e5 {[%clk 0:02:57.6]} 3. c4 {[%clk 0:02:57.9]} 3... d6 {[%clk 0:02:57.6]}
4. Nc3 {[%clk 0:02:58.3]} 4... Be7 {[%clk 0:02:57.8]} 5. g3 {[%clk 0:02:57.1]}
5... Nf6 {[%clk 0:02:57.4]} 6. h4 {[%clk 0:02:57.4]} 6... Bg4 {[%clk 0:02:51.2]}
7. f3 {[%clk 0:02:57.1]} 7... Bd7 {[%clk 0:02:50.1]} 8. e4 {[%clk 0:02:56.9]}
8... Na6 {[%clk 0:02:49.9]} 9. h5 {[%clk 0:02:56.9]} 9... h6 {[%clk 0:02:42.8]}
10. Bd3 {[%clk 0:02:55.1]} 10... Nc7 {[%clk 0:02:42.1]} 11. Nge2 {[%clk
0:02:54.7]} 11... a6 {[%clk 0:02:38.6]} 12. a4 {[%clk 0:02:54.8]} 12... b6
{[%clk 0:02:16.1]} 13. Kf2 {[%clk 0:02:54]} 13... O-O {[%clk 0:02:15.5]} 14. Be3
{[%clk 0:02:51.6]} 14... Rb8 {[%clk 0:02:12.9]} 15. Qd2 {[%clk 0:02:51.9]} 15...
Nh7 {[%clk 0:02:08.8]} 16. Bc2 {[%clk 0:02:26.2]} 16... b5 {[%clk 0:02:07.8]}
17. cxb5 {[%clk 0:02:25.4]} 17... axb5 {[%clk 0:02:08.1]} 18. b3 {[%clk
0:02:21.3]} 18... bxa4 {[%clk 0:01:52.7]} 19. bxa4 {[%clk 0:02:21.2]} 19... Rb2
{[%clk 0:01:41.6]} 20. g4 {[%clk 0:02:19.1]} 20... Bg5 {[%clk 0:01:38.5]} 21.
Rhb1 {[%clk 0:02:16.3]} 21... Bxe3+ {[%clk 0:01:34.3]} 22. Kxe3 {[%clk
0:02:17.2]} 22... Qg5+ {[%clk 0:01:30]} 23. f4 {[%clk 0:02:17.4]} 23... exf4+
{[%clk 0:01:30]} 24. Nxf4 {[%clk 0:02:17.7]} 24... Rxb1 {[%clk 0:01:28.1]} 25.
Rxb1 {[%clk 0:02:18.6]} 25... Nf6 {[%clk 0:01:22.4]} 26. Bd1 {[%clk 0:02:16.6]}
26... Bxg4 {[%clk 0:01:18]} 27. Rb7 {[%clk 0:02:06.3]} 27... Na6 {[%clk
0:01:17.3]} 28. a5 {[%clk 0:02:02.6]} 28... Re8 {[%clk 0:01:13.2]} 29. Rb6
{[%clk 0:01:54.2]} 29... Nb4 {[%clk 0:01:03.7]} 30. Rxd6 {[%clk 0:01:53.9]}
30... Bxd1 {[%clk 0:01:03.7]} 31. Qxd1 {[%clk 0:01:53]} 31... Qg3+ {[%clk
0:00:54]} 32. Qf3 {[%clk 0:01:52.8]} 32... Nc2+ {[%clk 0:00:53.6]} 33. Kd2
{[%clk 0:01:50]} 33... Qxf3 {[%clk 0:00:52.3]} 34. Nce2 {[%clk 0:01:49.7]} 34...
Nd4 {[%clk 0:00:50.5]} 35. Nxd4 {[%clk 0:01:49]} 35... Qxf4+ {[%clk 0:00:48.9]}
0-1

[Event "*** Titled Tuesday Blitz"]
[Site "Chess.com"]
[Date "2020.11.03"]
[Round "9"]
[White "grandcoach"]
[Black "Evachess2006"]
[Result "1-0"]
[WhiteElo "2079"]
[BlackElo "1634"]
[TimeControl "180+1"]
[EndTime "11:46:50 PST"]
[Termination "grandcoach won on time"]

1. e4 {[%clk 0:03:00.9]} 1... e5 {[%clk 0:02:46.5]} 2. Nf3 {[%clk 0:02:58.8]}
2... Nc6 {[%clk 0:02:26.6]} 3. d4 {[%clk 0:02:58.3]} 3... exd4 {[%clk
0:02:17.3]} 4. c3 {[%clk 0:02:58.5]} 4... d6 {[%clk 0:02:13.9]} 5. cxd4 {[%clk
0:02:58.1]} 5... Nf6 {[%clk 0:02:07.9]} 6. Nc3 {[%clk 0:02:57.5]} 6... Bg4
{[%clk 0:01:54.4]} 7. Be2 {[%clk 0:02:55.6]} 7... Be7 {[%clk 0:01:45.2]} 8. O-O
{[%clk 0:02:53.4]} 8... O-O {[%clk 0:01:40.7]} 9. h3 {[%clk 0:02:53.7]} 9... Bh5
{[%clk 0:01:36.2]} 10. Be3 {[%clk 0:02:53.7]} 10... Bg6 {[%clk 0:01:33.1]} 11.
e5 {[%clk 0:02:44.6]} 11... dxe5 {[%clk 0:01:29.5]} 12. dxe5 {[%clk 0:02:45.5]}
12... Ne4 {[%clk 0:01:25.6]} 13. Qb3 {[%clk 0:02:27.4]} 13... Nxc3 {[%clk
0:01:15.5]} 14. bxc3 {[%clk 0:02:20.7]} 14... b6 {[%clk 0:01:13.4]} 15. Rfd1
{[%clk 0:02:18.2]} 15... Qc8 {[%clk 0:01:11.1]} 16. Qa4 {[%clk 0:01:51]} 16...
Qb7 {[%clk 0:00:39.3]} 17. Ba6 {[%clk 0:01:48.6]} 1-0

[Event "*** Titled Tuesday Blitz"]
[Site "Chess.com"]
[Date "2020.11.03"]
[Round "9"]
[White "pavelalexandru07"]
[Black "crazy_but_lazy"]
[Result "0-1"]
[WhiteElo "2319"]
[BlackElo "2466"]
[TimeControl "180+1"]
[EndTime "11:47:05 PST"]
[Termination "crazy_but_lazy won by resignation"]

1. e4 {[%clk 0:03:00.9]} 1... c6 {[%clk 0:02:59.5]} 2. d4 {[%clk 0:03:00]} 2...
d5 {[%clk 0:02:59.8]} 3. e5 {[%clk 0:02:58.6]} 3... c5 {[%clk 0:02:57.6]} 4.
dxc5 {[%clk 0:02:58.1]} 4... e6 {[%clk 0:02:55.6]} 5. a3 {[%clk 0:02:57.1]} 5...
Nc6 {[%clk 0:02:55.8]} 6. Nf3 {[%clk 0:02:53.8]} 6... Bxc5 {[%clk 0:02:55.6]} 7.
b4 {[%clk 0:02:53.8]} 7... Bb6 {[%clk 0:02:55.5]} 8. Bb2 {[%clk 0:02:54.1]} 8...
f6 {[%clk 0:02:55.6]} 9. exf6 {[%clk 0:02:52]} 9... Nxf6 {[%clk 0:02:41.9]} 10.
Bd3 {[%clk 0:02:51.8]} 10... e5 {[%clk 0:02:38.9]} 11. Nxe5 {[%clk 0:02:42.9]}
11... Nxe5 {[%clk 0:02:03.5]} 12. Bxe5 {[%clk 0:02:41.4]} 12... O-O {[%clk
0:01:55.4]} 13. O-O {[%clk 0:02:37.1]} 13... Ng4 {[%clk 0:01:39.2]} 14. Bg3
{[%clk 0:02:36.8]} 14... Nxf2 {[%clk 0:01:34.5]} 15. Bxf2 {[%clk 0:02:33.5]}
15... Bxf2+ {[%clk 0:01:33.7]} 16. Rxf2 {[%clk 0:02:27.5]} 16... Rxf2 {[%clk
0:01:08.9]} 17. Qh5 {[%clk 0:02:13.7]} 17... Qf6 {[%clk 0:00:57.9]} 18. Qxh7+
{[%clk 0:01:58]} 18... Kf8 {[%clk 0:00:57.9]} 19. Nc3 {[%clk 0:01:57.8]} 19...
Qxc3 {[%clk 0:00:52]} 20. Kxf2 {[%clk 0:01:31.8]} 20... Qxa1 {[%clk 0:00:50.5]}
0-1

[Event "*** Titled Tuesday Blitz"]
[Site "Chess.com"]
[Date "2020.11.03"]
[Round "9"]
[White "Manukyan_Artak"]
[Black "jaskol95"]
[Result "0-1"]
[WhiteElo "2407"]
[BlackElo "2329"]
[TimeControl "180+1"]
[EndTime "11:47:09 PST"]
[Termination "jaskol95 won by checkmate"]

1. e4 {[%clk 0:02:57]} 1... c5 {[%clk 0:02:58.3]} 2. Nf3 {[%clk 0:02:56]} 2...
Nc6 {[%clk 0:02:58.6]} 3. c3 {[%clk 0:02:55.9]} 3... Nf6 {[%clk 0:02:57.1]} 4.
e5 {[%clk 0:02:56.2]} 4... Nd5 {[%clk 0:02:54.3]} 5. d4 {[%clk 0:02:57.1]} 5...
cxd4 {[%clk 0:02:53.4]} 6. cxd4 {[%clk 0:02:58]} 6... d6 {[%clk 0:02:53.5]} 7.
Nc3 {[%clk 0:02:58.9]} 7... Nxc3 {[%clk 0:02:53.5]} 8. bxc3 {[%clk 0:02:59.8]}
8... dxe5 {[%clk 0:02:54.2]} 9. d5 {[%clk 0:02:59.8]} 9... e4 {[%clk 0:02:44.2]}
10. Ng5 {[%clk 0:02:59.5]} 10... Ne5 {[%clk 0:02:43.1]} 11. Nxe4 {[%clk
0:02:55.6]} 11... Bf5 {[%clk 0:02:37.8]} 12. Ng3 {[%clk 0:02:52]} 12... Qd7
{[%clk 0:02:19.7]} 13. Bf4 {[%clk 0:02:43.9]} 13... Ng6 {[%clk 0:02:03.5]} 14.
Be3 {[%clk 0:02:30.6]} 14... a6 {[%clk 0:01:56.5]} 15. c4 {[%clk 0:02:22.6]}
15... e5 {[%clk 0:01:27.7]} 16. Nxf5 {[%clk 0:02:14.8]} 16... Qxf5 {[%clk
0:01:25.3]} 17. Rb1 {[%clk 0:02:08.1]} 17... Be7 {[%clk 0:00:44.8]} 18. Rxb7
{[%clk 0:01:54.3]} 18... O-O {[%clk 0:00:41.6]} 19. Be2 {[%clk 0:01:53.7]} 19...
Rfb8 {[%clk 0:00:29]} 20. Rxb8+ {[%clk 0:01:48.6]} 20... Rxb8 {[%clk 0:00:29.9]}
21. O-O {[%clk 0:01:48.8]} 21... Nf4 {[%clk 0:00:27.5]} 22. c5 {[%clk
0:01:43.5]} 22... Qe4 {[%clk 0:00:05.3]} 23. d6 {[%clk 0:01:37.5]} 23... Qxg2#
{[%clk 0:00:05.5]} 0-1

[Event "*** Titled Tuesday Blitz"]
[Site "Chess.com"]
[Date "2020.11.03"]
[Round "9"]
[White "Oleksandr_Bortnyk"]
[Black "Tocras"]
[Result "1-0"]
[WhiteElo "2919"]
[BlackElo "2795"]
[TimeControl "180+1"]
[EndTime "11:47:13 PST"]
[Termination "Oleksandr_Bortnyk won by resignation"]

1. e4 {[%clk 0:03:00.6]} 1... c5 {[%clk 0:02:59.2]} 2. c3 {[%clk 0:02:59.3]}
2... Nf6 {[%clk 0:02:54.3]} 3. e5 {[%clk 0:02:59.2]} 3... Nd5 {[%clk 0:02:54.8]}
4. d4 {[%clk 0:03:00.1]} 4... cxd4 {[%clk 0:02:53.8]} 5. Nf3 {[%clk 0:03:00.5]}
5... Nc6 {[%clk 0:02:53]} 6. cxd4 {[%clk 0:03:01.2]} 6... g6 {[%clk 0:02:53.5]}
7. Bc4 {[%clk 0:03:01]} 7... Nb6 {[%clk 0:02:53.5]} 8. Bb3 {[%clk 0:03:00.6]}
8... Bg7 {[%clk 0:02:52.3]} 9. Qe2 {[%clk 0:02:57.3]} 9... d6 {[%clk 0:02:43.6]}
10. O-O {[%clk 0:02:56.2]} 10... O-O {[%clk 0:02:42.1]} 11. h3 {[%clk
0:02:56.2]} 11... dxe5 {[%clk 0:02:34.2]} 12. dxe5 {[%clk 0:02:57.1]} 12... Nd4
{[%clk 0:02:32.6]} 13. Nxd4 {[%clk 0:02:54.1]} 13... Qxd4 {[%clk 0:02:33.5]} 14.
Re1 {[%clk 0:02:54.8]} 14... Bf5 {[%clk 0:02:30.1]} 15. Nc3 {[%clk 0:02:49.9]}
15... Bd3 {[%clk 0:02:21.6]} 16. Qf3 {[%clk 0:02:49.9]} 16... Bc4 {[%clk
0:02:08.9]} 17. Be3 {[%clk 0:02:49]} 17... Qd3 {[%clk 0:01:55.2]} 18. Rad1
{[%clk 0:02:30.1]} 18... Qf5 {[%clk 0:01:55]} 19. Qxf5 {[%clk 0:02:30.7]} 19...
gxf5 {[%clk 0:01:54.8]} 20. Bxb6 {[%clk 0:02:31.6]} 20... Bxb3 {[%clk
0:01:52.8]} 21. axb3 {[%clk 0:02:32.5]} 21... axb6 {[%clk 0:01:53.1]} 22. Rd7
{[%clk 0:02:33.4]} 22... e6 {[%clk 0:01:42.2]} 23. Rxb7 {[%clk 0:02:32.7]} 23...
Rfd8 {[%clk 0:01:42.7]} 24. f4 {[%clk 0:02:30.3]} 24... Rd4 {[%clk 0:01:38.4]}
25. g3 {[%clk 0:02:29.2]} 25... Rb4 {[%clk 0:01:37.8]} 26. Re2 {[%clk
0:01:35.8]} 26... Rxb3 {[%clk 0:01:36.7]} 27. Kg2 {[%clk 0:01:36]} 27... Bf8
{[%clk 0:01:34.8]} 28. g4 {[%clk 0:01:27.6]} 28... Rb4 {[%clk 0:01:19.4]} 29.
gxf5 {[%clk 0:01:24.9]} 29... exf5 {[%clk 0:01:19.3]} 30. Nd5 {[%clk 0:01:21.5]}
30... Rd4 {[%clk 0:01:17.2]} 31. Nf6+ {[%clk 0:01:21.2]} 31... Kg7 {[%clk
0:01:13]} 32. Kh2 {[%clk 0:01:21.3]} 1-0

[Event "*** Titled Tuesday Blitz"]
[Site "Chess.com"]
[Date "2020.11.03"]
[Round "9"]
[White "Margarita2907"]
[Black "Walter_White_Poland"]
[Result "0-1"]
[WhiteElo "2226"]
[BlackElo "2359"]
[TimeControl "180+1"]
[EndTime "11:47:18 PST"]
[Termination "Walter_White_Poland won by resignation"]

1. e4 {[%clk 0:03:00.9]} 1... e5 {[%clk 0:02:59.4]} 2. Nf3 {[%clk 0:03:00.1]}
2... Nc6 {[%clk 0:02:59.3]} 3. Bc4 {[%clk 0:02:59.8]} 3... Nf6 {[%clk
0:02:58.8]} 4. d3 {[%clk 0:02:59.3]} 4... d5 {[%clk 0:02:58.6]} 5. exd5 {[%clk
0:02:56.7]} 5... Nxd5 {[%clk 0:02:59.5]} 6. O-O {[%clk 0:02:55.7]} 6... Nb6
{[%clk 0:02:59.3]} 7. Bb3 {[%clk 0:02:54.6]} 7... Bg4 {[%clk 0:02:57.9]} 8. h3
{[%clk 0:02:52.7]} 8... Bh5 {[%clk 0:02:57.3]} 9. Nbd2 {[%clk 0:02:48.7]} 9...
Qe7 {[%clk 0:02:55.6]} 10. Re1 {[%clk 0:02:47.2]} 10... O-O-O {[%clk 0:02:52.9]}
11. a4 {[%clk 0:02:31.9]} 11... a5 {[%clk 0:02:52.3]} 12. Qe2 {[%clk 0:02:01.9]}
12... f6 {[%clk 0:02:22.2]} 13. Qe3 {[%clk 0:01:56.6]} 13... Qc5 {[%clk
0:01:49.8]} 14. Qxc5 {[%clk 0:01:51.5]} 14... Bxc5 {[%clk 0:01:49.2]} 15. Ne4
{[%clk 0:01:50.9]} 15... Bb4 {[%clk 0:01:44.4]} 16. Rf1 {[%clk 0:01:35.2]} 16...
Bxf3 {[%clk 0:01:43.5]} 17. gxf3 {[%clk 0:01:36.1]} 17... Nd4 {[%clk 0:01:39.7]}
18. Kg2 {[%clk 0:01:34.4]} 18... Nxb3 {[%clk 0:01:39]} 19. cxb3 {[%clk
0:01:35.1]} 19... Rxd3 {[%clk 0:01:37.7]} 20. Be3 {[%clk 0:01:32.5]} 20... Nd5
{[%clk 0:01:32.4]} 21. Bc5 {[%clk 0:01:26.4]} 21... Nf4+ {[%clk 0:01:23.5]} 22.
Kg3 {[%clk 0:01:24.9]} 22... Rxb3 {[%clk 0:01:11.3]} 23. Bxb4 {[%clk 0:01:21.6]}
23... Rxb4 {[%clk 0:01:08.3]} 24. Ra2 {[%clk 0:01:20]} 24... Rd8 {[%clk
0:01:02.9]} 25. Rc1 {[%clk 0:01:17.2]} 25... b6 {[%clk 0:00:53.8]} 26. Nc3
{[%clk 0:01:10.4]} 26... Rd2 {[%clk 0:00:44.3]} 27. Nb5 {[%clk 0:01:07.3]} 27...
Ne2+ {[%clk 0:00:43.3]} 0-1

[Event "*** Titled Tuesday Blitz"]
[Site "Chess.com"]
[Date "2020.11.03"]
[Round "9"]
[White "Goryachkina"]
[Black "Atousa1"]
[Result "1-0"]
[WhiteElo "2595"]
[BlackElo "2419"]
[TimeControl "180+1"]
[EndTime "11:47:31 PST"]
[Termination "Goryachkina won by resignation"]

1. e4 {[%clk 0:02:59.3]} 1... e5 {[%clk 0:02:56.2]} 2. Nf3 {[%clk 0:02:58]} 2...
Nf6 {[%clk 0:02:55.5]} 3. Nxe5 {[%clk 0:02:51]} 3... d6 {[%clk 0:02:55.8]} 4.
Nf3 {[%clk 0:02:51]} 4... Nxe4 {[%clk 0:02:55.8]} 5. Nc3 {[%clk 0:02:51.3]} 5...
Nxc3 {[%clk 0:02:55.9]} 6. dxc3 {[%clk 0:02:52]} 6... Be7 {[%clk 0:02:56.6]} 7.
Be3 {[%clk 0:02:52]} 7... Nc6 {[%clk 0:02:56.3]} 8. Qd2 {[%clk 0:02:51.4]} 8...
Be6 {[%clk 0:02:56]} 9. O-O-O {[%clk 0:02:46.8]} 9... Qd7 {[%clk 0:02:56.2]} 10.
h3 {[%clk 0:02:44.5]} 10... a6 {[%clk 0:02:54.1]} 11. Kb1 {[%clk 0:02:42.8]}
11... O-O-O {[%clk 0:02:53.7]} 12. Nd4 {[%clk 0:02:40]} 12... Bf6 {[%clk
0:02:36.8]} 13. Nxe6 {[%clk 0:02:31.4]} 13... fxe6 {[%clk 0:02:27.4]} 14. Be2
{[%clk 0:02:28.2]} 14... Kb8 {[%clk 0:02:26.5]} 15. Rhe1 {[%clk 0:02:27.2]}
15... Rhf8 {[%clk 0:02:24.4]} 16. f4 {[%clk 0:02:21.8]} 16... e5 {[%clk
0:02:17]} 17. Bf3 {[%clk 0:02:03.3]} 17... Ne7 {[%clk 0:01:34.6]} 18. fxe5
{[%clk 0:01:37.5]} 18... Bxe5 {[%clk 0:01:32.3]} 19. Bg1 {[%clk 0:01:30.1]}
19... Qb5 {[%clk 0:01:17.5]} 20. a4 {[%clk 0:01:24.6]} 20... Qa5 {[%clk
0:01:02.3]} 21. b4 {[%clk 0:01:17.2]} 21... Qxa4 {[%clk 0:00:47]} 22. Rxe5
{[%clk 0:01:16.8]} 22... dxe5 {[%clk 0:00:43.5]} 23. Qxd8+ {[%clk 0:01:16.6]}
23... Rxd8 {[%clk 0:00:44.4]} 24. Rxd8+ {[%clk 0:01:16.9]} 24... Nc8 {[%clk
0:00:45.3]} 25. Bg4 {[%clk 0:01:17.2]} 25... b6 {[%clk 0:00:44]} 26. Bxc8 {[%clk
0:01:11.6]} 26... Ka7 {[%clk 0:00:44.1]} 27. Bd7 {[%clk 0:01:10.2]} 27... Qa3
{[%clk 0:00:43.7]} 28. Bc6 {[%clk 0:01:07.5]} 1-0

[Event "*** Titled Tuesday Blitz"]
[Site "Chess.com"]
[Date "2020.11.03"]
[Round "9"]
[White "Hikaru"]
[Black "joppie2"]
[Result "0-1"]
[WhiteElo "3201"]
[BlackElo "2911"]
[TimeControl "180+1"]
[EndTime "11:47:33 PST"]
[Termination "joppie2 won by resignation"]

1. Nf3 {[%clk 0:03:00.9]} 1... d5 {[%clk 0:02:59.9]} 2. e3 {[%clk 0:02:59.9]}
2... Nf6 {[%clk 0:02:57.5]} 3. c4 {[%clk 0:02:59.7]} 3... c6 {[%clk 0:02:56.6]}
4. d4 {[%clk 0:02:59.8]} 4... Bf5 {[%clk 0:02:55.9]} 5. Nc3 {[%clk 0:02:51]}
5... e6 {[%clk 0:02:55.7]} 6. Nh4 {[%clk 0:02:49.3]} 6... Be4 {[%clk 0:02:54.6]}
7. f3 {[%clk 0:02:46.4]} 7... Bg6 {[%clk 0:02:54.6]} 8. Qb3 {[%clk 0:02:46.6]}
8... Qc7 {[%clk 0:02:54.2]} 9. Bd2 {[%clk 0:02:46.3]} 9... Be7 {[%clk
0:02:53.9]} 10. cxd5 {[%clk 0:02:41.5]} 10... Nxd5 {[%clk 0:02:40.1]} 11. Nxg6
{[%clk 0:02:40.6]} 11... hxg6 {[%clk 0:02:41]} 12. g3 {[%clk 0:02:40.8]} 12...
Nd7 {[%clk 0:02:39]} 13. O-O-O {[%clk 0:02:38.9]} 13... a5 {[%clk 0:02:36.8]}
14. Kb1 {[%clk 0:02:37.4]} 14... O-O {[%clk 0:02:33.4]} 15. Rc1 {[%clk
0:02:28.5]} 15... Nxc3+ {[%clk 0:02:13.5]} 16. Bxc3 {[%clk 0:02:29.4]} 16... a4
{[%clk 0:02:13.5]} 17. Qc2 {[%clk 0:02:29.9]} 17... a3 {[%clk 0:02:13.8]} 18. b3
{[%clk 0:02:28.7]} 18... Nf6 {[%clk 0:02:10.8]} 19. e4 {[%clk 0:02:25.6]} 19...
Rfd8 {[%clk 0:02:08.2]} 20. Be2 {[%clk 0:01:52.5]} 20... Qb6 {[%clk 0:02:01]}
21. Rhd1 {[%clk 0:01:51.8]} 21... Bb4 {[%clk 0:02:00.4]} 22. Ba1 {[%clk
0:01:52]} 22... Rd7 {[%clk 0:01:56.9]} 23. Rd3 {[%clk 0:01:42.5]} 23... Rad8
{[%clk 0:01:56.1]} 24. Rcd1 {[%clk 0:01:43.2]} 24... Ne8 {[%clk 0:01:55.1]} 25.
f4 {[%clk 0:01:14.9]} 25... Nd6 {[%clk 0:01:52.1]} 26. Bf3 {[%clk 0:01:15.3]}
26... Nb5 {[%clk 0:01:51.1]} 27. Qc4 {[%clk 0:01:15.4]} 27... Nd6 {[%clk
0:01:50.7]} 28. Qc2 {[%clk 0:01:15.3]} 28... Nb5 {[%clk 0:01:51.3]} 29. d5
{[%clk 0:01:10.9]} 29... cxd5 {[%clk 0:01:48.5]} 30. exd5 {[%clk 0:01:11.8]}
30... Rc7 {[%clk 0:01:48.6]} 31. Qe2 {[%clk 0:01:11.7]} 31... Qc5 {[%clk
0:01:31.8]} 32. dxe6 {[%clk 0:00:56.5]} 32... Rdc8 {[%clk 0:01:18.1]} 33. exf7+
{[%clk 0:00:51.3]} 33... Kh7 {[%clk 0:01:17.6]} 34. f8=Q {[%clk 0:00:51.7]}
34... Qc1+ {[%clk 0:01:16.7]} 0-1

[Event "*** Titled Tuesday Blitz"]
[Site "Chess.com"]
[Date "2020.11.03"]
[Round "9"]
[White "Gerodot71"]
[Black "ChronicUnhappiness"]
[Result "1-0"]
[WhiteElo "2492"]
[BlackElo "2358"]
[TimeControl "180+1"]
[EndTime "11:47:33 PST"]
[Termination "Gerodot71 won by checkmate"]

1. d4 {[%clk 0:03:00.9]} 1... Nf6 {[%clk 0:02:59.3]} 2. c4 {[%clk 0:03:00.3]}
2... e6 {[%clk 0:02:59.2]} 3. Nf3 {[%clk 0:02:59.5]} 3... d5 {[%clk 0:02:59.2]}
4. g3 {[%clk 0:02:59.1]} 4... c5 {[%clk 0:02:59.2]} 5. cxd5 {[%clk 0:02:59]}
5... exd5 {[%clk 0:02:58.9]} 6. Bg2 {[%clk 0:02:59.6]} 6... Nc6 {[%clk
0:02:59.2]} 7. O-O {[%clk 0:02:59.4]} 7... Be7 {[%clk 0:02:59.6]} 8. Nc3 {[%clk
0:02:59.1]} 8... O-O {[%clk 0:02:59.7]} 9. Bg5 {[%clk 0:02:59.6]} 9... c4 {[%clk
0:02:59.5]} 10. Ne5 {[%clk 0:02:58.3]} 10... Be6 {[%clk 0:02:41.3]} 11. Qd2
{[%clk 0:02:21.3]} 11... h6 {[%clk 0:02:30.7]} 12. Bxf6 {[%clk 0:02:21.1]} 12...
Bxf6 {[%clk 0:02:31.6]} 13. f4 {[%clk 0:02:20.6]} 13... Qb6 {[%clk 0:02:12]} 14.
e3 {[%clk 0:02:18.1]} 14... Bxe5 {[%clk 0:01:52.6]} 15. fxe5 {[%clk 0:02:16]}
15... Qd8 {[%clk 0:01:26]} 16. Rf2 {[%clk 0:02:08.7]} 16... a6 {[%clk
0:01:23.6]} 17. Raf1 {[%clk 0:02:06.1]} 17... Nb4 {[%clk 0:01:05.8]} 18. e4
{[%clk 0:01:57.3]} 18... dxe4 {[%clk 0:01:02.3]} 19. Bxe4 {[%clk 0:01:58.2]}
19... Nd5 {[%clk 0:00:56]} 20. Bb1 {[%clk 0:01:56.1]} 20... b5 {[%clk
0:00:48.4]} 21. Ne4 {[%clk 0:01:50.1]} 21... b4 {[%clk 0:00:38.3]} 22. Qc2
{[%clk 0:01:40]} 22... g6 {[%clk 0:00:36.8]} 23. Qd2 {[%clk 0:01:33.7]} 23...
Kh7 {[%clk 0:00:33.9]} 24. Nc5 {[%clk 0:01:31]} 24... c3 {[%clk 0:00:29.3]} 25.
Qd3 {[%clk 0:01:28.6]} 25... Qe7 {[%clk 0:00:25.4]} 26. Rf6 {[%clk 0:01:16.2]}
26... Bf5 {[%clk 0:00:19.4]} 27. R1xf5 {[%clk 0:01:14]} 27... gxf5 {[%clk
0:00:18.6]} 28. Qxf5+ {[%clk 0:01:14.9]} 28... Kg7 {[%clk 0:00:17.5]} 29. Qh7#
{[%clk 0:01:15.4]} 1-0

[Event "*** Titled Tuesday Blitz"]
[Site "Chess.com"]
[Date "2020.11.03"]
[Round "9"]
[White "TregubovP"]
[Black "anon481216"]
[Result "1-0"]
[WhiteElo "2537"]
[BlackElo "2397"]
[TimeControl "180+1"]
[EndTime "11:47:36 PST"]
[Termination "TregubovP won by resignation"]

1. e4 {[%clk 0:03:00.9]} 1... c5 {[%clk 0:02:59.6]} 2. Nf3 {[%clk 0:03:00]} 2...
Nc6 {[%clk 0:02:59.4]} 3. c3 {[%clk 0:02:59.8]} 3... d5 {[%clk 0:02:58.2]} 4.
exd5 {[%clk 0:02:59.3]} 4... Qxd5 {[%clk 0:02:57.9]} 5. d4 {[%clk 0:02:59.9]}
5... e6 {[%clk 0:02:54.4]} 6. Be2 {[%clk 0:02:58.5]} 6... Nf6 {[%clk 0:02:53.1]}
7. O-O {[%clk 0:02:58.2]} 7... cxd4 {[%clk 0:02:44.3]} 8. cxd4 {[%clk
0:02:58.1]} 8... Be7 {[%clk 0:02:44.5]} 9. Nc3 {[%clk 0:02:58.6]} 9... Qd6
{[%clk 0:02:44.6]} 10. Nb5 {[%clk 0:02:58.9]} 10... Qd8 {[%clk 0:02:43.7]} 11.
Bf4 {[%clk 0:02:59.4]} 11... Nd5 {[%clk 0:02:40.4]} 12. Bg3 {[%clk 0:02:59.8]}
12... O-O {[%clk 0:02:40.3]} 13. Rc1 {[%clk 0:02:55.2]} 13... Qb6 {[%clk
0:02:35.2]} 14. Bc4 {[%clk 0:02:44.3]} 14... Rd8 {[%clk 0:02:14.5]} 15. Bxd5
{[%clk 0:02:21.3]} 15... Qxb5 {[%clk 0:02:13.8]} 16. Bxc6 {[%clk 0:02:18]} 16...
bxc6 {[%clk 0:02:13.4]} 17. Qc2 {[%clk 0:02:15.9]} 17... Bb7 {[%clk 0:02:07.3]}
18. Rfd1 {[%clk 0:02:11.8]} 18... a5 {[%clk 0:02:05.7]} 19. Ne5 {[%clk
0:02:08.9]} 19... c5 {[%clk 0:01:57.5]} 20. dxc5 {[%clk 0:01:56.8]} 20... Rxd1+
{[%clk 0:01:56.2]} 21. Qxd1 {[%clk 0:01:47]} 21... Bxc5 {[%clk 0:01:54]} 22. a4
{[%clk 0:01:35.4]} 22... Qb6 {[%clk 0:01:41.6]} 23. Qh5 {[%clk 0:01:31.9]} 23...
g6 {[%clk 0:01:34.1]} 24. Qg5 {[%clk 0:01:27.4]} 24... Qd8 {[%clk 0:00:25.3]}
25. Qf4 {[%clk 0:01:18.5]} 25... f5 {[%clk 0:00:25.1]} 26. h4 {[%clk 0:01:05.6]}
26... Qd5 {[%clk 0:00:24.1]} 27. Nf3 {[%clk 0:01:05.8]} 27... Bd6 {[%clk
0:00:20.3]} 28. Qxd6 {[%clk 0:01:05]} 1-0